Cogmind - Beta 17.1 @@@ ROGUE MODE // 2026.08.29 @ 17:54:56 Player: FR-13D Result: Destroyed by P-70 Sage with High-powered Shock Rifle Performance ------------- Evolutions (5) 2500 Regions Visited (9) 1800 Robots Destroyed (190) 950 Value Destroyed (7716) 7716 Prototype IDs (33) 660 Alien Tech Used (0) 0 Bonus (1753) 1753 TOTAL SCORE: 15379 Bonus ------- High Alert Combat Kills 788 Follower Combat Kills 117 Registered with UFD 300 Met Optimus in HQ 500 Met Data Miner 300 Friendly Fire -252 Cogmind --------- Core Integrity 0/1000 Matter 290/300 Energy 100/100 System Corruption 23% Temperature Cool (0) Movement Core (50) Location -5/Factory Parts ------- > --- POWER (2) -------- (None) > --- PROPULSION (5) --- (None) > --- UTILITY (7) ------ (None) > --- WEAPON (3) ------- (None) > --- INVENTORY (5) ---- Armored Medium Treads ECM Suite Experimental EM Disruption Field Power Maul PL-3XN's Ring of Power Peak State ------------ > --- POWER ------------ Antimatter Reactor > --- PROPULSION ------- Improved VSS Leg Thunder Leg Enhanced Armored Leg Myomer Leg Experimental Biometal Leg > --- UTILITY ---------- Large Storage Unit Triangulator Improved Melee Analysis Suite Advanced Melee Analysis Suite Improved Target Analyzer Experimental Transmission Jammer Advanced System Shield > --- WEAPON ----------- Heavy Dispersion Rifle Compact Tesla Bomb Launcher Power Maul > --- INVENTORY -------- Armored Medium Treads Advanced Heat Sink Advanced Cooling System Improved Energy Well ECM Suite Reaction Control System EM Shield Experimental EM Disruption Field Hacking Suite Advanced Plasma Cannon Improved Heavy Machine Gun Improved Heavy Machine Gun Compact Tesla Bomb Launcher PL-3XN's Ring of Power [Rating: 106] Favorites ----------- Power Improved Ion Engine Engine Improved Ion Engine Power Core Neutrino Core Reactor Antimatter Reactor Propulsion Armored Leg Treads Light Treads Leg Armored Leg Wheel Wheel Utility Huge Storage Unit Device Improved Heat Sink Storage Huge Storage Unit Processor Target Analyzer Hackware Improved System Shield Protection Makeshift Light Armor Plating Weapon Impact Mace Energy Gun Beamcaster Energy Cannon Subdweller Beam Cannon Ballistic Gun Heavy Machine Gun Ballistic Cannon Battle Cannon Launcher Grenade Launcher Impact Weapon Impact Mace Build | -11 -10 -10 -9 -9 -6 -6 -6 -5 -5 ------- Run | Yrd Mat Sub Rec Scr Fac Low Dat Pro Fac Slots Evolved 10 | . . . . . 8 . . . 2 Power 1 | . . . . . 1 . . . . Propulsion 3 | . . . . . 2 . . . 1 Utility 5 | . . . . . 4 . . . 1 Weapon 1 | . . . . . 1 . . . . Parts Attached 168 | 9 2 20 2 3 75 6 . 3 48 Power 26 | 1 . 3 1 1 10 1 . 1 8 Engine 16 | 1 . 3 1 1 7 1 . 1 1 Core 9 | . . . . . 3 . . . 6 Reactor 1 | . . . . . . . . . 1 Propulsion 44 | 3 . 6 1 1 22 . . 2 9 Treads 10 | . . 4 . . 5 . . . 1 Leg 15 | . . . . . 5 . . 2 8 Wheel 19 | 3 . 2 1 1 12 . . . . Hover . | . . . . . . . . . . Flight . | . . . . . . . . . . Utility 60 | 2 1 3 . . 28 4 . . 22 Device 32 | 1 . 2 . . 15 1 . . 13 Storage 7 | 1 1 . . . 3 . . . 2 Processor 7 | . . . . . 4 . . . 3 Hackware 3 | . . . . . 1 . . . 2 Protection 11 | . . 1 . . 5 3 . . 2 Artifact . | . . . . . . . . . . Weapon 38 | 3 1 8 . 1 15 1 . . 9 Energy Gun 8 | 2 . 2 . 1 2 . . . 1 Energy Cannon 5 | . . 1 . . 3 . . . 1 Ballistic Gun 11 | 1 . 1 . . 5 . . . 4 Ballistic Cannon 2 | . . 2 . . . . . . . Launcher 7 | . 1 2 . . 1 1 . . 2 Special Weapon . | . . . . . . . . . . Impact Weapon 5 | . . . . . 4 . . . 1 Slashing Weapon . | . . . . . . . . . . Piercing Weapon . | . . . . . . . . . . Special Melee Weapon . | . . . . . . . . . . Unidentified Prototypes 14 | . . . . . 2 1 . . 11 Parts Lost 88 | . . 7 . . 53 . . 5 23 Power 14 | . . 1 . . 7 . . 2 4 Propulsion 26 | . . 1 . . 17 . . 1 7 Utility 28 | . . 2 . . 17 . . 1 8 Weapon 20 | . . 3 . . 12 . . 1 4 Highest Loss Streak 22 | . . 2 . . 22 . . 3 7 To Critical Strikes 2 | . . . . . 1 . . . 1 Average Backups 18 | 2 8 22 22 21 19 13 13 12 14 Power 1 | . 1 1 1 1 2 . . . . Propulsion 4 | . 3 4 6 4 3 4 4 3 2 Utility 8 | . 1 8 8 8 9 7 8 8 8 Weapon 4 | . 2 7 6 6 3 . 1 . 2 Tool/Special . | . . . . . . . . . . Unused Backups 49 | . . 11 . 6 13 2 . . 17 Power 4 | . . 2 . 1 . 1 . . . Propulsion 14 | . . 3 . 3 1 1 . . 6 Utility 19 | . . 2 . 1 7 . . . 9 Weapon 11 | . . 4 . 1 4 . . . 2 Tool/Special 1 | . . . . . 1 . . . . Average Slot Usage (%) 94 | . 100 97 100 100 89 86 74 82 93 Engine 10 | . 14 13 14 14 8 10 13 11 1 Core 1 | . . . . . 2 1 . . 5 Treads 9 | . . 19 15 10 10 . . . . Leg 9 | . . . . . 4 25 26 25 27 Wheel 7 | . 28 8 12 17 7 . . . . Device 6 | . 14 2 . . 18 . . . 10 Storage 9 | . 14 14 14 14 5 6 6 6 6 Processor 3 | . . . . . 6 6 6 6 8 Hackware 2 | . . . . . 1 6 6 6 5 Protection 8 | . . 10 14 14 2 12 13 12 4 Energy Gun 6 | . 14 6 8 17 6 . . . . Energy Cannon 1 | . . 4 . . 1 . . . . Ballistic Gun 2 | . 9 1 . . 3 . . . 6 Ballistic Cannon 4 | . . 6 19 10 . . . . . Launcher 2 | . 4 9 . . . . . 3 . Impact Weapon 3 | . . . . . 4 13 1 6 5 Peak Build Rating 106 | 7 10 24 24 22 61 70 67 69 106 Average Rating 44 | 5 7 18 22 21 50 66 60 65 87 On Entrance 33 | . 7 10 22 22 21 61 67 65 57 Avg Prop Armor Cover (%) 10 | . . . 8 11 7 . . . 9 Naked Turns 40 | . . . . . 36 . . . 4 Heaviest Build 125 | 14 91 101 103 99 125 70 70 76 84 Greatest Support 111 | 26 20 40 40 20 98 68 68 68 111 Greatest Overweight (x) 10 | . 4 9 10 9 8 1 1 1 1 Average Overweight (x) 2 | . 3 3 5 7 1 . . . . Largest Inventory Capacity 25 | 8 25 25 25 25 25 15 15 15 15 Average Capacity 20 | 7 23 25 25 25 21 15 15 15 14 Most Carried 25 | 5 15 25 25 25 25 15 15 15 15 Average Carried 19 | 2 8 24 24 23 20 14 14 13 14 Final Capacity 25 | 8 25 25 25 25 15 15 15 15 5 Final Carried 25 | 5 15 23 23 25 15 14 14 12 5 Class Distribution -------------------- 44% | Mutant 30% | Derelict-Mutant 3% | Scavenger-Skirmisher 3% | Scavenger-Assassin Dominant Class ---------------- Mutant | -10/Materials Mutant | -10/Subcaves Derelict-Mutant | -9/Recycling Derelict-Mutant | -9/Scraptown Mutant | -6/Factory Mutant | -6/Lower Caves Mutant | -6/Data Miner Mutant | -5/Proximity Caves Mutant | -5/Factory Resources | -11 -10 -10 -9 -9 -6 -6 -6 -5 -5 ----------- Run | Yrd Mat Sub Rec Scr Fac Low Dat Pro Fac Matter Collected 5431 | 314 59 1046 467 30 1712 187 . 292 1324 Remotely . | . . . . . . . . . . Salvage Created 8469 | 159 60 450 311 . 4121 600 . 259 2509 Parts 302 | 14 4 36 15 . 145 2 . 6 80 Haulers Intercepted 5 | . 1 . . . 2 . . . 2 Recyclers Shooed 7 | . . . 3 . 3 . . . 1 Parts Field Recycled . | . . . . . . . . . . Retrieved Matter . | . . . . . . . . . . Parts Self-Destructed 19 | . . 7 . . . 3 . 9 . Prevented 2 | . . . . . . 1 . 1 . Parts Restored . | . . . . . . . . . . Kills | -11 -10 -10 -9 -9 -6 -6 -6 -5 -5 ------- Run | Yrd Mat Sub Rec Scr Fac Low Dat Pro Fac Combat Hostiles Destroyed 142 | . 3 22 2 . 52 8 . 9 46 Melee 20 | . . . . . 7 1 . . 12 Guns 36 | . . . 1 . 25 . . . 10 Cannons 10 | . . 1 1 . 5 . . . 3 AOE 41 | . 3 21 . . 7 . . 7 3 Classes Destroyed 22 | 2 2 3 1 . 11 2 . . 1 Worker 10 | . . . . . 7 . . . 3 Builder 6 | . . . . . 6 . . . . Tunneler 5 | 4 . . . . 1 . . . . Hauler 5 | . 1 . . . 2 . . . 2 Recycler 12 | 1 . . 3 . 8 . . . . Mechanic 1 | . . . . . 1 . . . . Operator 2 | . . . . . 1 . . . 1 Turret 2 | . . 2 . . . . . . . Watcher 4 | . . . . . 1 . . . 3 Swarmer 23 | . 3 4 . . 4 . . 5 7 Saboteur 2 | . . . . . 1 . . . 1 Grunt 45 | . . . . . 27 . . 3 15 Brawler 6 | . . . . . 4 . . 1 1 Duelist 1 | . . . . . 1 . . . . Sentry 7 | . . . 2 . 3 . . . 2 Specialist 2 | . . . . . . . . . 2 Hunter 12 | . . . . . 4 1 . . 7 Programmer 19 | . . . . . 7 1 . . 11 Behemoth 1 | . . . . . 1 . . . . Subdweller 18 | . . 18 . . . . . . . Samaritan 2 | . . . . . . 1 . 1 . Thug 6 | . . 1 . . . 5 . . . Mutant 1 | . . . . . . 1 . . . Best Kill Streak 11 | 4 3 8 1 . 10 5 . 5 11 Combat Bots Only 8 | . 3 8 1 . 7 5 . 5 7 Max Kills in Single Turn 7 | 1 2 3 1 . 3 1 . 3 7 Gunslinging 1 | . . . . . 1 . . . . Exploded 3 | . 2 3 . . 2 . . 3 3 Melee 1 | . . . . . 1 1 . . 1 Uniques/NPCs Destroyed . | . . . . . . . . . . Combat | -11 -10 -10 -9 -9 -6 -6 -6 -5 -5 -------- Run | Yrd Mat Sub Rec Scr Fac Low Dat Pro Fac Hostile Shots Fired 1208 | . 4 119 4 . 493 40 . 125 423 Missed 410 | . . 45 1 . 176 15 . 38 135 Hits 798 | . 4 74 3 . 317 25 . 87 288 Melee 13 | . . . . . 11 . . . 2 Projectile 785 | . 4 74 3 . 306 25 . 87 286 AOE 3 | . . 2 . . . . . . 1 Critical Strikes 36 | . . 1 . . 10 1 . 4 20 Part Disruptions 2 | . . . . . . . . . 2 Damage Taken 14618 | . 35 1433 50 . 5163 413 . 1555 5969 Core 2005 | . 7 203 . . 731 . . 63 1001 Absorbed by Shields . | . . . . . . . . . . Ignored by Resistances 194 | . . . . . 16 20 . . 158 Regen/Repaired (Parts) 94 | . . . . . . . . . 94 Core Remaining (%) 40 | 100 . . . 16 . . . 6 . Volleys Fired 404 | 24 10 117 24 . 143 . . 12 74 Largest 3 | 2 2 2 2 . 3 . . 1 3 Hottest 223 | 70 70 110 108 . 223 . . 43 158 Shots Fired 757 | 48 17 130 36 . 365 . . 12 149 Gun 523 | 48 14 13 16 . 310 . . . 122 Cannon 159 | . . 71 20 . 44 . . . 24 Launcher 75 | . 3 46 . . 11 . . 12 3 Special . | . . . . . . . . . . Kinetic 336 | 24 7 54 20 . 130 . . . 101 Thermal 317 | 24 7 30 16 . 195 . . . 45 Explosive 72 | . 3 46 . . 11 . . 12 . Electromagnetic 32 | . . . . . 29 . . . 3 Robot Hit Streak 15 | 8 7 11 11 . 15 . . 1 14 Robot Miss Streak 4 | 2 1 3 3 . 3 . . 2 4 Penetration Max 1 | . . . . . 1 . . . . Secondary Targets 8 | . . . . . 6 . . . 2 Max Gunslinging Chain 2 | . . . . . 2 . . . 1 Shots Hit Robots 589 | 28 14 40 24 . 289 23 . 6 165 Core Hits 288 | 8 5 42 7 . 158 1 . 14 53 Critical Kills 13 | . . . . . 6 1 . . 6 Critical Parts Destroyed 56 | . . 1 . . 13 9 . 3 30 Critical Strikes 84 | . 1 3 2 . 29 10 . 3 36 Burn 11 | . 1 . 1 . 9 . . . . Meltdown 1 | . . . . . . . . . 1 Destroy 18 | . . 3 . . 8 . . . 7 Blast 1 | . . . 1 . . . . . . Smash 53 | . . . . . 12 10 . 3 28 Melee Attacks 223 | . . . . . 61 26 . 6 130 Impact 223 | . . . . . 61 26 . 6 130 Slashing . | . . . . . . . . . . Piercing . | . . . . . . . . . . Sneak Attacks 11 | . . . . . 5 1 . 1 4 Combat Hostiles 3 | . . . . . 2 . . . 1 Follow-up Attacks 11 | . . . . . 4 3 . . 4 Damage Inflicted 24427 | 311 279 2811 524 . 9453 1422 . 1404 8223 Guns 7014 | 311 118 132 300 . 4421 . . . 1732 Cannons 1946 | . . 261 224 . 869 . . . 592 Explosions 7206 | . 161 2418 . . 2136 . . 1102 1389 Melee 8246 | . . . . . 2012 1422 . 302 4510 Ramming 15 | . . . . . 15 . . . . Kinetic 3631 | 120 56 219 224 . 1751 . . . 1261 Thermal 6281 | 191 62 174 300 . 3329 . . . 2225 Explosive 5436 | . 161 2418 . . 1755 . . 1102 . Electromagnetic 818 | . . . . . 591 . . . 227 Impact 8246 | . . . . . 2012 1422 . 302 4510 Slashing . | . . . . . . . . . . Piercing . | . . . . . . . . . . Highest Corruption 23 | . . . . . 11 11 11 11 23 Average Corruption 8 | . . . . . 5 11 11 11 7 Corruption Purged . | . . . . . . . . . . Corruption Blocked . | . . . . . . . . . . Effects 209 | . . . . . 68 50 4 41 46 Message Errors 61 | . . . . . 20 16 2 14 9 Matter Fused 46 | . . . . . 13 12 . 14 7 Heat Flow Errors 26 | . . . . . 5 9 . 3 9 Energy Discharges 39 | . . . . . 14 7 2 9 7 Parts Rejected 5 | . . . . . 2 1 . . 2 Parts Fused 1 | . . . . . 1 . . . . Data Loss (minor) 19 | . . . . . 9 3 . 1 6 Data Loss (major) 3 | . . . . . 1 2 . . . Misfires 2 | . . . . . 1 . . . 1 Alerts 2 | . . . . . . . . . 2 Misdirections 2 | . . . . . . . . . 2 Weapon Failures 3 | . . . . . 2 . . . 1 Overload Shots . | . . . . . . . . . . Overflow Damage 3545 | . . 55 5 . 773 884 . 273 1555 Projectiles 78 | . . 28 5 . 16 . . . 29 Explosions 187 | . . 27 . . 90 . . 13 57 Melee 3280 | . . . . . 667 884 . 260 1469 Knockbacks 42 | . . 4 2 . 8 3 . 1 24 Impact 34 | . . . . . 8 3 . 1 22 Kinetic 6 | . . 4 2 . . . . . . Secondary 2 | . . . . . . . . . 2 Self-Inflicted Damage 590 | . . 202 . . 295 . . 74 19 Shots 23 | . . 11 . . 8 . . 3 1 Rammed 4 | . . . . . 4 . . . . Targets Rammed 4 | . . . . . 4 . . . . Kicked . | . . . . . . . . . . Crushed . | . . . . . . . . . . Highest Temperature 355 | 260 80 45 230 . 344 269 . 313 355 Average Temperature 87 | 113 41 10 79 . 93 100 . 71 92 Received Heat Transfer 3319 | . . 243 9 . 1095 135 . 673 1164 Effects 4 | . . . . . 2 . . . 2 Energy Bleed 2 | . . . . . 1 . . . 1 Interference 1 | . . . . . 1 . . . . Matter Decay 1 | . . . . . . . . . 1 Siege Activations . | . . . . . . . . . . Martial Activations . | . . . . . . . . . . Shielding Activations . | . . . . . . . . . . Robots Disrupted . | . . . . . . . . . . Combat Hostiles . | . . . . . . . . . . Robots Corrupted 39 | . . . . . 8 9 . 3 19 Combat Hostiles 35 | . . . . . 6 9 . 2 18 Parts Fried 46 | . . . . . 9 15 . 4 18 Impact Corruptions 108 | . . . . . 19 31 . 10 48 Robots Melted 3 | . . . . . 2 . . . 1 Combat Hostiles 2 | . . . . . 2 . . . . Parts Melted 17 | 2 . . 1 . 12 . . . 2 Heat Transferred 10100 | 555 259 333 592 . 6331 . . . 2030 Parts Sabotaged 3 | . . . . . 3 . . . . Parts Stolen . | . . . . . . . . . . Parts Stripped . | . . . . . . . . . . Power Chain Reactions 5 | . . . . . 4 . . . 1 Alert | -11 -10 -10 -9 -9 -6 -6 -6 -5 -5 ------- Run | Yrd Mat Sub Rec Scr Fac Low Dat Pro Fac Maximum Alert Level 3 | . . . . . 3 . . . 3 Low Security (%) 56 | 100 100 . 100 . 35 . . . 55 Level 1 8 | . . . . . 9 . . . 12 Level 2 23 | . . . . . 51 . . . 5 Level 3 12 | . . . . . 3 . . . 26 Level 4 . | . . . . . . . . . . Level 5 . | . . . . . . . . . . High Security . | . . . . . . . . . . Max Security . | . . . . . . . . . . Peak Influence 932 | 10 92 . 85 . 739 . . . 932 Initial 85 | . . . 85 . . . . . 45 Average 263 | 1 28 . 13 . 336 . . . 308 Influence Increases 4515 | 25 137 225 92 . 1943 65 . 379 1649 Destroy 0b10 Robot/C 2500 | . 60 120 40 . 1040 40 . 280 920 Destroy 0b10 Robot/NC 235 | 25 5 . 20 . 135 5 . . 45 Destroy Leader 508 | . 12 . . . 246 20 . 30 200 Allied During Kill 39 | . . . . . . . . 39 . Successful Hack 76 | . 38 . 14 . 8 . . . 16 Disable Machine 480 | . . . 15 . 285 . . . 180 Destroy Structure 227 | . 22 . 3 . 94 . . . 108 Lose Combat Pursuer 450 | . . 105 . . 135 . . 30 180 Influence Decreases 3655 | 25 137 46 271 . 1431 577 . 306 862 Entered New Map 312 | . . . 94 . . 190 . . 28 Time Decay 2184 | 25 137 26 177 . 592 387 . 236 604 Lost Part 799 | . . 20 . . 499 . . 50 230 Lost Ally 60 | . . . . . 40 . . 20 . Purge Threat 300 | . . . . . 300 . . . . Squads Dispatched 37 | . . . . . 21 . . . 16 Investigation 12 | . . . . . 6 . . . 6 Extermination 12 | . . . . . 6 . . . 6 Reinforcement 8 | . . . . . 4 . . . 4 Assault 2 | . . . . . 2 . . . . Garrison 3 | . . . . . 3 . . . . Intercept . | . . . . . . . . . . Searches Triggered . | . . . . . . . . . . Construction Impeded 4 | . . . . . 3 . . . 1 Haulers Reinforced 1 | . . . . . . . . . 1 Active Scanning Responses . | . . . . . . . . . . Cargo Convoy Interrupts 1 | . . . . . . . . . 1 Stealth | -11 -10 -10 -9 -9 -6 -6 -6 -5 -5 --------- Run | Yrd Mat Sub Rec Scr Fac Low Dat Pro Fac Distress Signals 8 | . . . . . 6 . . . 2 Communications Jammed 16 | . . . . . . . . . 16 Distress Signals 15 | . . . . . . . . . 15 Times Spotted 209 | . 4 32 1 . 69 8 . 16 79 Peak Tracking Total 9 | . 3 7 1 . 7 5 . 6 9 Tactical Retreats 20 | . . 4 . . 5 . . 2 9 Traps | -11 -10 -10 -9 -9 -6 -6 -6 -5 -5 ------- Run | Yrd Mat Sub Rec Scr Fac Low Dat Pro Fac Traps Triggered 6 | . . 1 . . 3 . . . 2 Indirectly . | . . . . . . . . . . Trap Hack Attempts . | . . . . . . . . . . Triggered . | . . . . . . . . . . Disarmed . | . . . . . . . . . . Reprogrammed . | . . . . . . . . . . Reused . | . . . . . . . . . . Traps Extracted . | . . . . . . . . . . Installed . | . . . . . . . . . . Triggered . | . . . . . . . . . . Machines | -11 -10 -10 -9 -9 -6 -6 -6 -5 -5 ---------- Run | Yrd Mat Sub Rec Scr Fac Low Dat Pro Fac Machines Disabled 34 | . . 2 1 . 19 . . . 12 Max in Single Turn 7 | . . 1 1 . 4 . . . 7 Garrison Access 1 | . . . . . 1 . . . . Machines Repaired . | . . . . . . . . . . Machines Dismantled . | . . . . . . . . . . Machines Sabotaged . | . . . . . . . . . . Overloaded Fab Kills . | . . . . . . . . . . Hacking | -11 -10 -10 -9 -9 -6 -6 -6 -5 -5 --------- Run | Yrd Mat Sub Rec Scr Fac Low Dat Pro Fac Machines Accessed 50 | . 4 . 5 6 13 . 4 . 18 Terminals 23 | . 4 . 5 . 5 . . . 9 Fabricators 2 | . . . . . 1 . . . 1 Repair Stations 1 | . . . . . . . . . 1 Recycling Units 11 | . . . . . 5 . . . 6 Scanalyzers 2 | . . . . . 1 . . . 1 Garrison Access 1 | . . . . . 1 . . . . Total Hacks 139 | . 9 . 9 24 26 . 28 . 43 Successful 95 | . 5 . 6 24 14 . 28 . 18 Failed 41 | . 4 . 2 . 11 . . . 24 Catastrophic 5 | . . . . . 3 . . . 2 Database Lockouts 3 | . . . 1 . 1 . . . 1 Manual 62 | . 6 . 8 . 18 . . . 30 Terminals 54 | . 9 . 9 . 11 . . . 25 Fabricators 4 | . . . . . 1 . . . 3 Repair Stations 2 | . . . . . . . . . 2 Recycling Units 16 | . . . . . 8 . . . 8 Scanalyzers 8 | . . . . . 3 . . . 5 Garrison Access 3 | . . . . . 3 . . . . Terminal Hacks 62 | . 2 . 2 24 4 . 28 . 2 Record 30 | . . . . 19 . . 11 . . Part Schematic 11 | . . . . . . . 11 . . Robot Schematic 3 | . . . . . . . 3 . . Robot Analysis 6 | . . . 1 5 . . . . . Prototype ID Bank 7 | . 2 . 1 . 1 . 3 . . Unreport Threat 2 | . . . . . 2 . . . . Locate Traps 2 | . . . . . 1 . . . 1 Recall Investigation 1 | . . . . . . . . . 1 Fabricator Hacks 2 | . . . . . 1 . . . 1 Load Schematic 1 | . . . . . . . . . 1 Build 1 | . . . . . 1 . . . . Repair Station Hacks 2 | . . . . . . . . . 2 Scan Component 1 | . . . . . . . . . 1 Repair 1 | . . . . . . . . . 1 Recycling Unit Hacks . | . . . . . . . . . . Scanalyzer 4 | . . . . . 1 . . . 3 Retrieve Study 4 | . . . . . 1 . . . 3 Garrison Access Hacks 1 | . . . . . 1 . . . . Seal Access 1 | . . . . . 1 . . . . Unauthorized Hacks 24 | . 3 . 4 . 7 . . . 10 Terminals 14 | . 3 . 4 . 3 . . . 4 Botnet 14 | . 3 . 4 . 3 . . . 4 Fabricators . | . . . . . . . . . . Repair Stations . | . . . . . . . . . . Recycling Units 10 | . . . . . 4 . . . 6 Fedlink 10 | . . . . . 4 . . . 6 Scanalyzers . | . . . . . . . . . . Garrison Access . | . . . . . . . . . . Data Cores Recovered . | . . . . . . . . . . Used . | . . . . . . . . . . Hacking Detections 24 | . 4 . 2 . 7 . . . 11 Full Trace Events 1 | . . . . . 1 . . . . Feedback Events . | . . . . . . . . . . Feedback Blocked . | . . . . . . . . . . Robot Schematics Acquired 3 | . . . . . . . 3 . . Robots Built 4 | . . . . . 4 . . . . Authchips . | . . . . . . . . . . Time 81 | . . . . . 81 . . . . Total Robot Build Rating 4 | . . . . . 4 . . . . Part Schematics Acquired 11 | . . . . . . . 11 . . Parts Built . | . . . . . . . . . . Authchips . | . . . . . . . . . . Time . | . . . . . . . . . . Total Part Build Rating . | . . . . . . . . . . Part Studies Acquired 4 | . . . . . 1 . . . 3 Parts Repaired 1 | . . . . . . . . . 1 Time 70 | . . . . . . . . . 70 Parts Recycled . | . . . . . . . . . . Recycled Matter . | . . . . . . . . . . Retrieved Matter . | . . . . . . . . . . Retrieved Components . | . . . . . . . . . . Parts Scanalyzed . | . . . . . . . . . . Part Schematics Acquired . | . . . . . . . . . . Parts Damaged . | . . . . . . . . . . Bothacking | -11 -10 -10 -9 -9 -6 -6 -6 -5 -5 ------------ Run | Yrd Mat Sub Rec Scr Fac Low Dat Pro Fac Used RIF Installer . | . . . . . . . . . . Robots Hacked . | . . . . . . . . . . Non-combat . | . . . . . . . . . . Combat . | . . . . . . . . . . Robot Hacks Applied . | . . . . . . . . . . Relay Couplers Released . | . . . . . . . . . . Fabnet Peak Effective % . | . . . . . . . . . . Robots Rewired . | . . . . . . . . . . Allies Hacked . | . . . . . . . . . . Hacks Repelled . | . . . . . . . . . . Allies | -11 -10 -10 -9 -9 -6 -6 -6 -5 -5 -------- Run | Yrd Mat Sub Rec Scr Fac Low Dat Pro Fac Total Allies 5 | . . . . . 4 . . 1 . Largest Group 4 | . . . . . 4 . . 1 . Highest-Rated Group 96 | . . . . . 24 . . 96 . Highest-Rated Ally 96 | . . . . . 6 . . 96 . Initial UFD Resources 42 | . . . . . 22 40 40 42 42 Total Orders . | . . . . . . . . . . Ally Attacks 15 | . . . . . . . . 15 . Total Damage 375 | . . . . . . . . 375 . Kills 5 | . . . . . . . . 5 . Allies Corrupted . | . . . . . . . . . . Allies Melted . | . . . . . . . . . . Intel | -11 -10 -10 -9 -9 -6 -6 -6 -5 -5 ------- Run | Yrd Mat Sub Rec Scr Fac Low Dat Pro Fac Active Infowar (turns) 6467 | 36 332 265 . . 2444 . . . 3390 Optics 47 | . . 47 . . . . . . . Sensors 1899 | . . . . . 1899 . . . . IFF 2071 | . . . . . . . . . 2071 Traps 1578 | . . . . . 1578 . . . . Seismic 586 | 36 332 218 . . . . . . . Machine Analysis 296 | . . . . . 296 . . . . Triangulation 1295 | . . . . . . . . . 1295 Jamming 1272 | . . . . . . . . . 1272 Robot Analysis Total 6 | . . . 1 5 . . . . . Derelict Logs Recovered 9 | . . 1 . 4 . 3 . 1 . Drone Launches . | . . . . . . . . . . Drone Recoveries . | . . . . . . . . . . Exploration | -11 -10 -10 -9 -9 -6 -6 -6 -5 -5 ------------- Run | Yrd Mat Sub Rec Scr Fac Low Dat Pro Fac Turns Passed 18856 | 175 332 3999 1102 3640 3400 1412 107 1218 3471 Spaces Moved 9281 | 108 210 1542 463 1897 1614 758 87 732 1870 Core 103 | 3 . . . . 96 . . . 4 Treads 1319 | . . 804 115 . 400 . . . . Legs 3868 | . . . . . 425 758 87 732 1866 Wheels 3991 | 105 210 738 348 1897 693 . . . . Hover . | . . . . . . . . . . Flight . | . . . . . . . . . . Fastest Speed 50 | 50 80 140 131 140 50 120 120 120 50 Average Speed 168 | 83 131 235 221 190 149 170 121 155 111 Slowest Speed 360 | 90 140 360 360 215 332 190 190 190 190 Overloaded Moves . | . . . . . . . . . . Propulsion Burnouts . | . . . . . . . . . . Robots Hopped . | . . . . . . . . . . Potential Cave-ins . | . . . . . . . . . . Cave-ins Triggered 1 | . . 1 . . . . . . . Exploration Rate (%) 55 | 3 32 66 67 94 34 54 68 85 48 Regions Visited 9 Branch Regions 6 Pre-discovered Areas 4 | . . . . 2 1 . 1 . . Known Exits Taken . | . . . . . . . . . . Unknown Exits Taken 9 | 1 1 1 1 1 1 1 1 1 . Scrap Searched 20 | . . 10 . 5 . 2 . 3 . Spaces Dug 50 | . . 16 . . 13 . . . 21 Terrain Destroyed 643 | . 24 249 3 . 111 . . 203 53 Melee 29 | . . . . . 12 . . . 17 Projectile 50 | . . 25 3 . 7 . . . 15 AOE 564 | . 24 224 . . 92 . . 203 21 Terrain Rammed . | . . . . . . . . . . Walls Destroyed . | . . . . . . . . . . Machines Disabled . | . . . . . . . . . . Actions | -11 -10 -10 -9 -9 -6 -6 -6 -5 -5 --------- Run | Yrd Mat Sub Rec Scr Fac Low Dat Pro Fac Total 11476 | 144 249 1800 504 1935 2213 841 89 785 2916 Wait 1014 | . 16 47 . 15 196 36 . 27 677 Move 9272 | 107 209 1541 462 1896 1613 757 86 731 1870 Hop . | . . . . . . . . . . Pick Up 164 | 4 10 35 5 12 54 6 . 3 35 Fast Attach 68 | 7 . 2 . . 32 3 . 2 22 Attach 62 | . . 7 . . 29 2 1 4 19 Detach 12 | . . 1 . . . 1 1 . 9 Swap 141 | 2 3 25 7 3 48 5 . . 48 Drop 119 | . 1 25 6 9 33 10 1 . 34 Fire 404 | 24 10 117 24 . 143 . . 12 74 Melee 204 | . . . . . 55 21 . 6 122 Ram 4 | . . . . . 4 . . . . Kick . | . . . . . . . . . . Crush . | . . . . . . . . . . Escape Stasis 12 | . . . . . 6 . . . 6 Rewire . | . . . . . . . . . . Trap . | . . . . . . . . . . Miscellaneous . | . . . . . . . . . . Route ------- -11/Scrapyard -10/Materials (discovered 2 exits: [*Min] / [*Sub]) -10/Subcaves (discovered 2 exits: [*Mat] / *Rec) -9/Recycling -9/Scraptown (discovered 2 exits: *Fac x2) -6/Factory (discovered 2 exits: [*Low x2]) -6/Lower Caves (discovered 2 exits: *Low / *Dat) -6/Data Miner -5/Proximity Caves -5/Factory (discovered 1 exit: [*Fac]) History --------- Turn | Location | Event 8 | -11/Scrapyard | Discovered new exit (range 15) 176 | -11/Scrapyard | Entered Materials 304 | -10/Materials | Build established: Mutant 376 | -10/Materials | Discovered new exit (range 8) 479 | -10/Materials | Discovered new exit (range 10) 508 | -10/Materials | Entered Subcaves 727 | -10/Subcaves | Ambushed by swarm of Subdwellers 729 | -10/Subcaves | Ambushed by Subdwellers from Twisted Machinery 729 | -10/Subcaves | Ambushed by Subdwellers from Twisted Machinery 769 | -10/Subcaves | Destroyed 8 combat bots 1121 | -10/Subcaves | Shifting Twisted Machinery released Sub. Beam Cannon 1182 | -10/Subcaves | Shifting Twisted Machinery released Riot Gun 1325 | -10/Subcaves | Shifting Twisted Machinery released Mak. Flight Unit 1325 | -10/Subcaves | Shifting Twisted Machinery released Flamer 1588 | -10/Subcaves | Discovered new exit (range 14) 1793 | -10/Subcaves | Shifting Twisted Machinery released Spk. Treads 1941 | -10/Subcaves | A swath of the cavern ceiling suddenly collapsed 2099 | -10/Subcaves | Shifting Twisted Machinery released Mak. Laser 2551 | -10/Subcaves | Core integrity fell below 50% 2684 | -10/Subcaves | Disturbed a concealed Subdweller 3255 | -10/Subcaves | Build established: Derelict-Mutant 4373 | -10/Subcaves | Discovered new exit (range 13) 4428 | -10/Subcaves | Core integrity fell below 20% 4496 | -10/Subcaves | Crushed by falling debris 4507 | -10/Subcaves | Entered Recycling 5259 | -9/Recycling | Build established: Scavenger-Mutant 5528 | -9/Recycling | Scanned before Scraplab entrance 5558 | -9/Recycling | Entered Scraplab 5577 | -9/Recycling | Discovered new exit (range 3) 5609 | -9/Recycling | Entered Scraptown 5623 | -9/Scraptown | Build established: Derelict-Mutant 5777 | -9/Scraptown | Heard Great Nut preacher, LISTEN AND RECITE! 5898 | -9/Scraptown | Visited Awakened 5940 | -9/Scraptown | Visited Red Mages 6028 | -9/Scraptown | Visited Shadow of the Wyrm 6146 | -9/Scraptown | Visited Fellowship of the Rings 6179 | -9/Scraptown | Visited Cyclists 6222 | -9/Scraptown | Visited Symbiants 6422 | -9/Scraptown | Visited IN-MT5's Study 7435 | -9/Scraptown | Discovered new exit (range 5) 7529 | -9/Scraptown | Scanned Subdweller tech in exchange for log data 7536 | -9/Scraptown | Learned Factory emergency access door positions 7538 | -9/Scraptown | Learned location of Zion (-7) 7540 | -9/Scraptown | Learned location of 1 exit from Research 7542 | -9/Scraptown | Learned location of Extension (-4) 7777 | -9/Scraptown | Visited UFD Registry 7777 | -9/Scraptown | Registered with UFD as "Technochaser" 7871 | -9/Scraptown | Visited Curators Association 7925 | -9/Scraptown | Visited Abandonware Association 7942 | -9/Scraptown | Learned abandonware demo "OVRCLOCK.EXE" 7951 | -9/Scraptown | Learned abandonware demo "ERRANTS.EXE" 8013 | -9/Scraptown | Visited Scrap Suit Storage 8099 | -9/Scraptown | Received an X-ray algorithm 8226 | -9/Scraptown | Discovered new exit (range 5) 8295 | -9/Scraptown | Visited DA-N13 Charitable Foundation 8325 | -9/Scraptown | Found DCF Scrap (27 items) 8401 | -9/Scraptown | Visited Supply Room 8455 | -9/Scraptown | Visited Research Penetration Think Tank 8486 | -9/Scraptown | Visited Botcube Research 8517 | -9/Scraptown | Visited Chapter 10 8570 | -9/Scraptown | Visited Analyses Database 8676 | -9/Scraptown | Entered Cyclist Reading Room 8906 | -9/Scraptown | Delivered Scrap Shield to a Scientist 9158 | -9/Scraptown | Met Optimus 9158 | -9/Scraptown | Accepted into 0bPrime 9249 | -9/Scraptown | Entered Factory 9249 | -6/Factory | Evolved 8 slots: Power x1, Propulsion x2, Utility x4, Weapon x1 9536 | -6/Factory | Loaded intel: 8 recycling unit locations 9624 | -6/Factory | Garrison activated, responded to threat 9684 | -6/Factory | Spotted B-75 Beast 9765 | -6/Factory | Lost 4 parts (3n1u) 9869 | -6/Factory | Destroyed B-75 Beast 9889 | -6/Factory | Lost 3 parts (1u2w) 10148 | -6/Factory | Lost 3 parts (1p2w) 10274 | -6/Factory | Central database locked down 10499 | -6/Factory | Destroyed 7 combat bots 10509 | -6/Factory | Lost 3 parts (2n1w) 10649 | -6/Factory | First assault squad dispatched 10788 | -6/Factory | Build established: Scavenger-Assassin 11030 | -6/Factory | Lost 4 parts (1p1n1u1w) 11046 | -6/Factory | Learned location of Protoforge (-3) 11803 | -6/Factory | Core integrity fell below 50% 11847 | -6/Factory | Fabricated K-01 Serf? 11878 | -6/Factory | Lost 5 parts (1p3n1w) 11911 | -6/Factory | Lost 4 allies 11911 | -6/Factory | Released all parts (8) 11942 | -6/Factory | Lost 22 parts (3p6n10u3w) 12220 | -6/Factory | Build established: Mutant 12440 | -6/Factory | Core integrity fell below 20% 12440 | -6/Factory | System corruption reached 10% 12480 | -6/Factory | Lost 4 parts (1p3u) 12498 | -6/Factory | Destroyed 7 combat bots 12526 | -6/Factory | Discovered new exit (range 5) 12537 | -6/Factory | Discovered new exit (range 9) 12649 | -6/Factory | Entered Lower Caves 12651 | -6/Lower Caves | UFD Scientist delivered a prototype 12653 | -6/Lower Caves | Found Prototype Protection 12653 | -6/Lower Caves | Identified Enh. Scrap Shield 12828 | -6/Lower Caves | Identified exit to Lower Caves 12904 | -6/Lower Caves | Learned 4 Factory zone layouts 13059 | -6/Lower Caves | Attacked by a faux Warlord 13365 | -6/Lower Caves | Encountered a Warlord checkpoint 13383 | -6/Lower Caves | Learned 8 Factory zone layouts 14044 | -6/Lower Caves | A Derelict revealed a hidden shortcut to meet someone special 14061 | -6/Lower Caves | Entered Data Miner 14061 | -6/Data Miner | Discovered new exit (range 6) 14087 | -6/Data Miner | Met Data Miner 14107 | -6/Data Miner | Learned location of Section 7 (-3) 14107 | -6/Data Miner | Acquired the access code to Warlord's prototype stash 14127 | -6/Data Miner | Received God Mode back door access code from Data Miner 14168 | -6/Data Miner | Entered Proximity Caves 14647 | -5/Proximity Caves | Escorted by Enhanced Grunt 14888 | -5/Proximity Caves | Spotted B-75 Beast 15194 | -5/Proximity Caves | Lost 3 parts (1p1n1w) 15366 | -5/Proximity Caves | Discovered new exit (range 15) 15386 | -5/Proximity Caves | Entered Factory 15386 | -5/Factory | Evolved 2 slots: Propulsion x1, Utility x1 15779 | -5/Factory | Loaded intel: 8 recycling unit locations 16206 | -5/Factory | Repaired Impact Mace 16218 | -5/Factory | Central database locked down 17776 | -5/Factory | Lost 6 parts (1p3n2u) 17932 | -5/Factory | Cargo convoy interrupted 17989 | -5/Factory | Destroyed 7 combat bots 17990 | -5/Factory | System corruption reached 10% 18041 | -5/Factory | Lost 4 parts (2p1n1u) 18094 | -5/Factory | Found PL-3XN's Ring of Power 18099 | -5/Factory | Found Prototype Device 18099 | -5/Factory | Identified Exp. EM Disruption Field 18111 | -5/Factory | Found Prototype Launcher 18111 | -5/Factory | Identified Com. Tesla Bomb Launcher 18115 | -5/Factory | Found Com. Tesla Bomb Launcher 18121 | -5/Factory | Found Prototype Device 18121 | -5/Factory | Identified Exp. Transmission Jammer 18175 | -5/Factory | Core integrity fell below 50% 18478 | -5/Factory | Build established: Infiltrator-Mutant 18693 | -5/Factory | Lost 3 parts (1n2u) 18817 | -5/Factory | Discovered new exit (range 15) 18848 | -5/Factory | Core integrity fell below 20% 18853 | -5/Factory | Released all parts (10) 18857 | -5/Factory | Destroyed by P-70 Sage with High-powered Shock Rifle Last Messages --------------- 18843_ Hvy. Dispersion Rifle destroyed. 18845_ Imp. Heavy Machine Gun destroyed. 18847_ System corrupted: Heat flow error (+281). 18847_ Knocked back. 18848_ Door malfunctions. 18848_ U-05 Engineer builds a Wall. 18852_ Knocked back. 18853_ P-70 Sage heat damages Hpw. Shock Rifle. 18853_ Released Hacking Suite. 18853_ Released Imp. Energy Well. 18853_ Released Adv. Heat Sink. 18853_ Released Adv. System Shield. 18853_ Released Imp. VSS Leg. 18853_ Released Imp. Target Analyzer. 18853_ Released Lrg. Storage Unit. 18853_ Released Exp. Biometal Leg. 18853_ Released Triangulator. 18853_ Released Myomer Leg. 18853_ Dropped Carbon-fiber Leg. 18854_ Acquired PL-3XN's Ring of Power. Map ----- +----------------------------------------------------+ | ????????????????????????????????????????????? | | ????????????????????????????????????????????? | | ????????????????????????????????????????????? | | ????????????????????????????????????????????? | | ????????????????????????????????????????????? | | ????????????????????????????????????????????? | | ????????????????????????????????????????????? | | ????????????????????????????????????????????? | | ????????????????????????????????????????????? | | ????????????????????????????????????????????? | | ????????????????????????????????????????????? | | ????????????????????????????????????????????? | | ????????????????????????????????????????????? | | ????????????????????????????????????????????? | | ????????????????????????????????????????????? | | ????????????????????????????????????????????? | | ????????????????????????????????????????????? | | ?????????????? ?????????????????????????????? | | ?????????????# ????????????????????????????? | | ?????????????# ???????????????????????????? | | ???????????### ??????????????????????????? | | ???????????? ??????????????????????????? | | ?????????????# ??##?????????????????????? | | ?????????????# ###;########+####????????? | | ?????????????# #????????? | | ?????????????# @ #????????? | | ?????????????# ]!= < #????????? | | ##?##???????## % != #????????? | | ? ??? p]!!== H #????????? | | = ?????###########p!!]!= ###????????? | | "" #??????????????# u #??????????? | | "Y" #??????????????# #??????????? | | #??????????????# #??????????? | | #??????????????# % #???#######? | | #######?######## % #???# #? | | # # ; #???# #? | | # """ # # ##;#######?# #? | | """ # "Y" # # % # #?# #? | | """ # " " # ?# # """" ??# #? | | """ # # + / """" ??# #? | | """ # # # # """" ??# #? | | + # # # """" ??# #? | | # """ # !" # """" ??# #? | | # """ # # # """" ??# #? | | # """ ########## # """" #?# #? | | # #????????# # #?# #? | | #! #????????# ##############+##?? | | #######????????# #% # #??? | | T#?????????????# # = # #??? | | #?????????????# #% # #??? | +----------------------------------------------------+ Best States ------------- Heat Dissipation 70 Energy Generation 32 Energy Capacity 775 Matter Stores 300 Matter Capacity 300 Sight Range 21 Robot Scan Range 15 Terrain Scan Density 10 Jamming Range 22 Power Amplification 80 Armor Coverage 1025 Resistance: TH 30 Resistance: EM 25 Weapon Cycling 15 Phase Shifting 5 Evasion (%) 80 Melee Accuracy 14 Target Analysis 6 Armor Integrity Analysis 30 Recoil Reduction 4 Offensive Hacking 10 Defensive Hacking 26 Authchip Count 5 Item Schematics ----------------- Combat Drone Bay | -6/Data Miner | Free Lgt. Regenerative Plating | -6/Data Miner | Free Enh. Flexi-carbon Leg | -6/Data Miner | Free Prc. Matter Filter | -6/Data Miner | Free Plasma Sword | -6/Data Miner | Free Imp. Antigrav System | -6/Data Miner | Free Adv. Reaction Control System | -6/Data Miner | Free Matter Neutralizer | -6/Data Miner | Free Hvy. Mass Driver | -6/Data Miner | Free Imp. Phase Shifter | -6/Data Miner | Free Adv. Component Analysis Suite | -6/Data Miner | Free Robot Schematics ------------------ B-60 Warrior | -6/Data Miner | Free B-48 Gladiator | -6/Data Miner | Free G-50 Soldier | -6/Data Miner | Free Fabricated ------------ K-01 Serf | x4 | -6/Factory | Preloaded Repaired ---------- Impact Mace | 32% | -5/Factory Studied --------- Com. Wheel | -6/Factory | Hacked Arm. Leg | -5/Factory | Hacked Med. Treads | -5/Factory | Hacked Adv. Plasma Cannon | -5/Factory | Hacked Alien Tech Used ----------------- None Achievements -------------- Hammer Time Hulk Smash Loot Taster Challenges ------------ None Game ------ Seed MappingGreaterWheel Manual? 0 Play Time 02:26:31 Cumulative 133.1 hours Start 2026.08.29 @ 14:33:23 End 2026.08.29 @ 17:54:56 Sessions 3 Manual Loads 0 Difficulty Rogue Special Mode None Game No. 132 Rogue 132 Adventurer 0 Explorer 0 Win Type - Total 0 Types 0/0/0/0/0/0/0/0/0/0 Lore% 64 Gallery% 50 Achievement% 43 Wizard Run 0 Options --------- Layout 0 ASCII 0 Keyboard 1 Movement Vi Keybinds 0 Fullscreen 2 Font 18/SmallcapsGlow Map View 76x50 Zoom Use 0% Tactical HUD 1 Map Filters NONE Filters NONE Steam 1 RUN: 2b1fd436-9946-46af-9c8a-c5cf3f79ba32